Cogmind - Beta 12 @@@ ROGUE MODE // 2023.12.15 @ 20:44:39 Player: Savagecelery Result: Destroyed by B-75 Beast with Heavy Plasma Cannon Performance ------------- Evolutions (5) 2500 Regions Visited (10) 2000 Robots Destroyed (64) 320 Value Destroyed (1471) 1471 Prototype IDs (4) 80 Alien Tech Used (0) 0 Bonus (852) 852 TOTAL SCORE: 7223 Bonus ------- Follower Combat Kills 108 Entered DSFs 500 Aligned with FarCom 300 Friendly Fire -56 Cogmind --------- Core Integrity 0/1000 Matter 280/300 Energy 15/100 System Corruption 8% Temperature Cool (12) Movement Treading (160) Location -5/Extension Parts ------- > --- POWER (3) -------- (None) > --- PROPULSION (6) --- Improved Treads Carbon-fiber Leg > --- UTILITY (5) ------ (None) > --- WEAPON (3) ------- (None) > --- INVENTORY (5) ---- Improved Hacking Suite Peak State ------------ > --- POWER ------------ Light Nuclear Core Fission Core Neutrino Core > --- PROPULSION ------- Carbon-fiber Leg Carbon-fiber Leg Armored Huge Wheel Field Propulsion Drive Field Propulsion Drive > --- UTILITY ---------- Power Amplifier Huge Storage Unit Advanced Visual Processing Unit Improved Core Shielding Improved Hardlight Generator > --- WEAPON ----------- Long-range Proton Cannon KE Penetrator Shock Maul > --- INVENTORY -------- Fission Core Advanced Signal Interpreter Advanced Terrain Scan Processor Particle Charger Improved Actuator Array Improved Hardlight Generator Improved Shield Generator Improved Shield Generator Improved Hacking Suite Skeleton Box Long-range Tractor Beam Plasma Cannon Plasma Cannon Plasma Cannon Plasma Cannon Shock Maul [Rating: 84] Favorites ----------- Power Ion Engine Engine Ion Engine Power Core Micro Nuclear Core Propulsion Armored Huge Wheel Treads Improved Treads Leg Carbon-fiber Leg Wheel Armored Huge Wheel Hover Unit Improved Hover Unit Flight Unit Field Propulsion Drive Utility Small Storage Unit Device Improved Hardlight Generator Storage Small Storage Unit Processor Advanced Visual Processing Unit Protection Improved Core Shielding Weapon Shock Maul Energy Gun Tesla Rifle Energy Cannon Long-range Proton Cannon Ballistic Gun Assault Rifle Launcher Improved Grenade Launcher Special Weapon Mining Laser Impact Weapon Shock Maul Build | -11 -10 -10 -10 -9 -8 -7 -7 -6 -5 -5 ------- Run | Jun Mat Min Exi Min Mat Fac DSF Fac Fac Ext Slots Evolved 10 | . . . . . 4 2 . 2 2 . Power 2 | . . . . . . 1 . 1 . . Propulsion 4 | . . . . . 2 . . . 2 . Utility 3 | . . . . . 2 . . 1 . . Weapon 1 | . . . . . . 1 . . . . Parts Attached 102 | 7 4 6 3 3 13 1 20 6 23 16 Power 15 | 1 . 2 . 1 1 1 . 1 5 3 Engine 6 | 1 . 2 . 1 . 1 . . 1 . Core 9 | . . . . . 1 . . 1 4 3 Reactor . | . . . . . . . . . . . Propulsion 32 | 2 2 2 2 . 1 . 13 . 4 6 Treads 3 | . . 2 . . . . . . . 1 Leg 3 | . . . . . . . . . . 3 Wheel 8 | 2 . . . . . . 2 . 4 . Hover 6 | . 2 . 2 . 1 . 1 . . . Flight 12 | . . . . . . . 10 . . 2 Utility 28 | 1 1 . 1 . 7 . 2 4 7 5 Device 21 | . . . 1 . 6 . 1 3 6 4 Storage 2 | 1 . . . . . . 1 . . . Processor 2 | . 1 . . . 1 . . . . . Hackware . | . . . . . . . . . . . Protection 3 | . . . . . . . . 1 1 1 Artifact . | . . . . . . . . . . . Weapon 27 | 3 1 2 . 2 4 . 5 1 7 2 Energy Gun 9 | 1 . . . . 2 . 4 1 1 . Energy Cannon 3 | . . . . . . . . . 3 . Ballistic Gun 6 | 2 1 1 . . 1 . . . . 1 Ballistic Cannon . | . . . . . . . . . . . Launcher 2 | . . . . . . . . . 2 . Special Weapon 4 | . . 1 . 2 1 . . . . . Impact Weapon 3 | . . . . . . . 1 . 1 1 Slashing Weapon . | . . . . . . . . . . . Piercing Weapon . | . . . . . . . . . . . Special Melee Weapon . | . . . . . . . . . . . Unidentified Prototypes 4 | . . . 1 . 2 . 1 . . . Corrupted Parts 1 | . . . . . . . . . 1 . System Corruption 3 | . . . . . . . . . 3 . Parts Lost 56 | . . 2 . 1 4 . 3 1 20 25 Power 11 | . . . . . 1 . . . 5 5 Propulsion 14 | . . 2 . . 1 . 1 . 5 5 Utility 13 | . . . . . 1 . . . 5 7 Weapon 18 | . . . . 1 1 . 2 1 5 8 Highest Loss Streak 22 | . . 2 . 1 3 . 2 1 13 22 To Critical Strikes . | . . . . . . . . . . . Average Slot Usage (%) 76 | . 95 100 98 90 79 76 70 74 59 62 Engine 6 | . 14 14 14 14 7 7 7 6 3 . Core 4 | . . . . . 1 7 7 9 4 11 Treads 5 | . . 17 25 . . . . . . . Leg 1 | . . . . . . . . . . 6 Wheel 6 | . 10 . . . . . 9 13 15 4 Hover 5 | . 17 10 2 28 23 15 . . . . Flight 1 | . . . . . . . 8 . . 4 Device 6 | . . . 7 14 18 15 4 3 5 7 Storage 9 | . 14 14 14 14 9 7 11 13 7 4 Processor 6 | . 9 14 6 . 2 7 7 6 5 4 Protection 1 | . . . . . . . . 1 3 3 Energy Gun 2 | . . . . . 2 7 10 13 3 . Ballistic Gun 7 | . 28 22 14 14 8 . . . . 1 Special Weapon 2 | . . 5 12 5 6 7 1 . . . Impact Weapon 2 | . . . . . . . . 6 5 4 Naked Turns 178 | . . . . . . . . . . 178 Heaviest Build 138 | 13 14 14 15 14 19 22 111 129 129 138 Greatest Support 84 | 20 20 46 46 14 28 14 56 56 84 28 Greatest Overweight (x) 7 | . 1 . 1 . 1 1 7 2 4 4 Average Overweight (x) . | . . . . . . 1 . 1 1 2 Largest Inventory Capacity 25 | 8 8 8 8 8 8 8 25 25 25 25 Average Capacity 16 | 6 8 8 8 8 8 8 16 25 25 21 Most Carried 22 | 6 8 8 8 8 8 8 22 21 22 20 Average Carried 12 | 2 7 7 7 7 7 7 11 18 17 13 Final Capacity 25 | 8 8 8 8 8 8 8 25 25 25 5 Final Carried 21 | 6 8 8 8 8 8 8 21 19 20 1 Class Distribution -------------------- 82% | Mutant 7% | Scavenger-Mutant 3% | Scout Dominant Class ---------------- Mutant | -10/Materials Mutant | -10/Mines Mutant | -10/Exiles Mutant | -9/Mines Scout | -8/Materials Infiltrator-Mutant | -7/Factory Mutant | -7/DSF Mutant | -6/Factory Mutant | -5/Factory Mutant | -5/Extension Resources | -11 -10 -10 -10 -9 -8 -7 -7 -6 -5 -5 ----------- Run | Jun Mat Min Exi Min Mat Fac DSF Fac Fac Ext Matter Collected 1509 | 248 122 206 . 47 148 . 27 35 356 320 Remotely . | . . . . . . . . . . . Salvage Created 2415 | . 159 228 . 33 105 . . 137 1440 313 Parts 92 | . 13 24 . 4 9 . . 3 22 17 Haulers Intercepted 3 | . 1 . . . 1 . . . 1 . Recyclers Shooed 3 | . . 1 . . . . . . 2 . Parts Field Recycled . | . . . . . . . . . . . Retrieved Matter . | . . . . . . . . . . . Parts Self-Destructed . | . . . . . . . . . . . Prevented . | . . . . . . . . . . . Kills | -11 -10 -10 -10 -9 -8 -7 -7 -6 -5 -5 ------- Run | Jun Mat Min Exi Min Mat Fac DSF Fac Fac Ext Combat Hostiles Destroyed 31 | . 3 5 . 2 1 . . 2 11 7 Melee 7 | . . . . . . . . . 4 3 Guns 13 | . 3 5 . 2 1 . . 1 . 1 Cannons 1 | . . . . . . . . . . 1 AOE 6 | . . . . . . . . 1 3 2 Classes Destroyed 11 | . 5 3 . . 1 . . . 2 . Worker 14 | . 1 3 . . 1 . . 1 8 . Builder 6 | . . 1 . . . . . 1 3 1 Tunneler 2 | . . 2 . . . . . . . . Hauler 3 | . 1 . . . 1 . . . 1 . Recycler 6 | . . . . . . . . . 6 . Watcher 3 | . 1 . . . . . . 1 . 1 Swarmer 12 | . 2 3 . 2 . . . . 4 1 Grunt 7 | . 1 1 . . . . . 2 . 3 Sentry 6 | . . . . . 1 . . . 3 2 Programmer 4 | . . . . . . . . . 4 . Assembled 1 | . . 1 . . . . . . . . Thug 1 | . . . . . . . . . . 1 Best Kill Streak 7 | . 3 5 . 2 3 . . 2 7 3 Combat Bots Only 5 | . 2 5 . 2 1 . . 1 3 3 Max Kills in Single Turn 4 | . 1 2 . 1 1 . . 2 4 1 Gunslinging 1 | . . 1 . . . . . . . . Exploded 3 | . . . . . . . . 1 3 1 Melee 1 | . . . . . . . . . 1 1 Uniques/NPCs Destroyed . | . . . . . . . . . . . Combat | -11 -10 -10 -10 -9 -8 -7 -7 -6 -5 -5 -------- Run | Jun Mat Min Exi Min Mat Fac DSF Fac Fac Ext Damage Taken 6157 | . 65 303 . 96 268 . 348 165 3268 1644 Core 1229 | . 22 28 . 25 47 . 82 . 491 534 Absorbed by Shields 298 | . . . . . . . . 6 . 292 Redirected to Shielding 52 | . . . . . . . . . . 52 Core Remaining (%) 89 | 100 . . . 70 91 . 88 100 . . Volleys Fired 87 | . 16 29 . 6 14 . 2 5 1 14 Largest 2 | . 2 2 . 2 2 . 1 2 1 2 Hottest 130 | . 40 120 . 120 126 . 100 130 36 114 Shots Fired 139 | . 32 54 . 7 17 . 2 10 1 16 Gun 112 | . 32 48 . 6 14 . . 10 . 2 Cannon 8 | . . . . . . . . . . 8 Launcher 7 | . . . . . . . . . 1 6 Special 12 | . . 6 . 1 3 . 2 . . . Kinetic 97 | . 32 48 . 6 9 . . . . 2 Thermal 17 | . . 6 . 1 8 . 2 . . . Explosive 7 | . . . . . . . . . 1 6 Electromagnetic 18 | . . . . . . . . 10 . 8 Robot Hit Streak 15 | . 14 15 . 1 8 . . 9 6 11 Robot Miss Streak 4 | . 3 4 . 4 4 . . 2 . 1 Penetration Max 1 | . . . . . . . . . . 1 Secondary Targets 1 | . . 1 . . . . . . . . Max Gunslinging Chain 1 | . . 1 . . . . . . . . Shots Hit Robots 135 | . 19 25 . 2 9 . . 8 51 21 Core Hits 67 | . 8 16 . 2 5 . . 6 9 21 Critical Kills 4 | . . 1 . . . . . . 1 2 Critical Parts Destroyed 15 | . 1 . . . . . . 1 12 1 Critical Strikes 21 | . 1 1 . . . . . 2 14 3 Destroy 2 | . 1 1 . . . . . . . . Corrupt 1 | . . . . . . . . 1 . . Smash 18 | . . . . . . . . 1 14 3 Melee Attacks 81 | . . . . . . . 3 3 64 11 Impact 81 | . . . . . . . 3 3 64 11 Slashing . | . . . . . . . . . . . Piercing . | . . . . . . . . . . . Sneak Attacks 18 | . . . . . . . . 1 17 . Combat Hostiles . | . . . . . . . . . . . Follow-up Attacks . | . . . . . . . . . . . Damage Inflicted 6694 | . 212 349 . 23 232 . . 761 3750 1367 Guns 1007 | . 212 349 . 23 132 . . 227 . 64 Cannons 243 | . . . . . . . . . . 243 Explosions 1381 | . . . . . 80 . . 437 202 662 Melee 4030 | . . . . . . . . 97 3548 385 Ramming 33 | . . . . . 20 . . . . 13 Kinetic 713 | . 212 349 . 23 65 . . . . 64 Thermal 181 | . . . . . 67 . . 114 . . Explosive 1267 | . . . . . 80 . . 323 202 662 Electromagnetic 470 | . . . . . . . . 227 . 243 Impact 4030 | . . . . . . . . 97 3548 385 Slashing . | . . . . . . . . . . . Piercing . | . . . . . . . . . . . Highest Corruption 10 | . . . . . 1 . . . 10 8 Average Corruption 6 | . . . . . 1 . . . 5 8 Corruption Purged 7 | . . . . . . . . . 7 . Corruption Blocked . | . . . . . . . . . . . Effects 63 | . . . . . . . . . 29 34 Message Errors 12 | . . . . . . . . . 6 6 Matter Fused 16 | . . . . . . . . . 5 11 Heat Flow Errors 10 | . . . . . . . . . 4 6 Energy Discharges 10 | . . . . . . . . . 7 3 Parts Rejected 1 | . . . . . . . . . 1 . Parts Fused 1 | . . . . . . . . . 1 . Data Loss (minor) 8 | . . . . . . . . . 4 4 Data Loss (major) 3 | . . . . . . . . . . 3 Misfires 1 | . . . . . . . . . . 1 Alerts 1 | . . . . . . . . . 1 . Overload Shots . | . . . . . . . . . . . Overflow Damage 2161 | . . . . . 26 . . 155 1921 59 Projectiles 29 | . . . . . . . . . 29 . Explosions 84 | . . . . . 26 . . 58 . . Melee 2048 | . . . . . . . . 97 1892 59 Knockbacks 20 | . . . . . . . . . 20 . Impact 19 | . . . . . . . . . 19 . Kinetic . | . . . . . . . . . . . Secondary 1 | . . . . . . . . . 1 . Self-Inflicted Damage 207 | . . . . . 105 . . 76 20 6 Shots 3 | . . . . . 1 . . 1 1 . Rammed 4 | . . . . . 2 . . . . 2 Targets Rammed 4 | . . . . . 2 . . . . 2 Kicked . | . . . . . . . . . . . Crushed . | . . . . . . . . . . . Highest Temperature 314 | . 10 20 . 30 67 . . 314 237 304 Average Temperature 74 | . 4 9 . 17 19 . . 139 103 111 Received Heat Transfer 839 | . 18 140 . . 72 . . 54 153 402 Effects 3 | . . . . . . . . . . 3 Interference 3 | . . . . . . . . . . 3 Siege Activations . | . . . . . . . . . . . Robots Corrupted . | . . . . . . . . . . . Combat Hostiles . | . . . . . . . . . . . Parts Fried 31 | . . . . . . . . 4 25 2 Impact Corruptions 59 | . . . . . . . . 2 55 2 Robots Melted . | . . . . . . . . . . . Combat Hostiles . | . . . . . . . . . . . Parts Melted 2 | . . . . . 1 . . . . 1 Heat Transferred 248 | . . . . . 148 . . 100 . . Parts Sabotaged . | . . . . . . . . . . . Parts Stolen . | . . . . . . . . . . . Parts Stripped . | . . . . . . . . . . . Power Chain Reactions 2 | . . . . . . . . 2 . . Missiles Intercepted . | . . . . . . . . . . . Alert | -11 -10 -10 -10 -9 -8 -7 -7 -6 -5 -5 ------- Run | Jun Mat Min Exi Min Mat Fac DSF Fac Fac Ext Peak Influence 270 | . 95 161 . 76 190 86 60 148 198 270 Initial 86 | . . 36 . . 29 86 60 8 2 58 Average 79 | . 29 76 . 70 113 86 10 47 67 143 Maximum Alert Level 1 | . . . . . . . . . . 1 Low Security (%) 92 | 100 100 100 . 100 100 100 100 100 100 63 Level 1 7 | . . . . . . . . . . 36 Level 2 . | . . . . . . . . . . . Level 3 . | . . . . . . . . . . . Level 4 . | . . . . . . . . . . . Level 5 . | . . . . . . . . . . . High Security . | . . . . . . . . . . . Max Security . | . . . . . . . . . . . Squads Dispatched 13 | . 2 . . . 1 . 2 2 5 1 Investigation 3 | . 2 . . . 1 . . . . . Extermination 3 | . . . . . . . . . 3 . Reinforcement 7 | . . . . . . . 2 2 2 1 Assault . | . . . . . . . . . . . Garrison . | . . . . . . . . . . . Intercept . | . . . . . . . . . . . Searches Triggered . | . . . . . . . . . . . Construction Impeded 2 | . . . . . . . . 1 . 1 Haulers Reinforced 1 | . . . . . . . . 1 . . Active Scanning Responses . | . . . . . . . . . . . Cargo Convoy Interrupts 1 | . . . . . . . . . 1 . Stealth | -11 -10 -10 -10 -9 -8 -7 -7 -6 -5 -5 --------- Run | Jun Mat Min Exi Min Mat Fac DSF Fac Fac Ext Distress Signals 3 | . . . . . 1 . . . . 2 Communications Jammed . | . . . . . . . . . . . Distress Signals . | . . . . . . . . . . . Times Spotted 91 | . 8 13 . 4 7 . 5 3 18 33 Peak Tracking Total 18 | . 3 18 . 4 3 . 2 2 5 13 Tactical Retreats 15 | . . 1 . 1 1 . 1 . 3 8 Traps | -11 -10 -10 -10 -9 -8 -7 -7 -6 -5 -5 ------- Run | Jun Mat Min Exi Min Mat Fac DSF Fac Fac Ext Traps Triggered 12 | . 1 . . . . . . . 5 6 Indirectly . | . . . . . . . . . . . Trap Hack Attempts . | . . . . . . . . . . . Triggered . | . . . . . . . . . . . Disarmed . | . . . . . . . . . . . Reprogrammed . | . . . . . . . . . . . Reused . | . . . . . . . . . . . Traps Extracted . | . . . . . . . . . . . Installed . | . . . . . . . . . . . Triggered 2 | . . 1 . . . . . . 1 . Machines | -11 -10 -10 -10 -9 -8 -7 -7 -6 -5 -5 ---------- Run | Jun Mat Min Exi Min Mat Fac DSF Fac Fac Ext Machines Disabled 6 | . . 1 . . 1 . . 3 . 1 Max in Single Turn 3 | . . 1 . . 1 . . 3 . 1 Machines Repaired . | . . . . . . . . . . . Machines Sabotaged . | . . . . . . . . . . . Overloaded Fab Kills . | . . . . . . . . . . . Hacking | -11 -10 -10 -10 -9 -8 -7 -7 -6 -5 -5 --------- Run | Jun Mat Min Exi Min Mat Fac DSF Fac Fac Ext Machines Accessed 21 | . 2 1 2 . 5 2 . 2 3 4 Terminals 13 | . 2 . . . 3 1 . 1 2 4 Fabricators . | . . . . . . . . . . . Repair Stations 1 | . . . . . 1 . . . . . Recycling Units 1 | . . . . . 1 . . . . . Scanalyzers 1 | . . . . . . . . 1 . . Garrison Access 2 | . . . . . . 1 . . 1 . Total Hacks 81 | . 6 1 32 . 16 3 . 15 4 4 Successful 63 | . 1 1 32 . 12 1 . 11 1 4 Failed 18 | . 5 . . . 4 2 . 4 3 . Catastrophic 3 | . 1 . . . 1 . . . 1 . Database Lockouts . | . . . . . . . . . . . Manual 11 | . . . 1 . 9 . . . 1 . Terminals 26 | . 6 . . . 9 1 . 4 2 4 Fabricators . | . . . . . . . . . . . Repair Stations 2 | . . . . . 2 . . . . . Recycling Units 5 | . . . . . 5 . . . . . Scanalyzers 11 | . . . . . . . . 11 . . Garrison Access 4 | . . . . . . 2 . . 2 . Terminal Hacks 44 | . 1 1 32 . 3 1 . 1 1 4 Record 32 | . . . 32 . . . . . . . Open Door 6 | . . 1 . . . . . . 1 4 Open DSF 2 | . . . . . . 1 . 1 . . Alert Level 2 | . 1 . . . 1 . . . . . Hauler Manifests 1 | . . . . . 1 . . . . . Registered Components 1 | . . . . . 1 . . . . . Fabricator Hacks . | . . . . . . . . . . . Repair Station Hacks 1 | . . . . . 1 . . . . . Scan Component 1 | . . . . . 1 . . . . . Recycling Unit Hacks 1 | . . . . . 1 . . . . . Retrieve Components 1 | . . . . . 1 . . . . . Scanalyzer 10 | . . . . . . . . 10 . . Insert Component 4 | . . . . . . . . 4 . . Analyze 6 | . . . . . . . . 6 . . Garrison Access Hacks . | . . . . . . . . . . . Unauthorized Hacks 7 | . . . . . 7 . . . . . Terminals 4 | . . . . . 4 . . . . . Assimilate 2 | . . . . . 2 . . . . . Botnet 2 | . . . . . 2 . . . . . Fabricators . | . . . . . . . . . . . Repair Stations . | . . . . . . . . . . . Recycling Units 3 | . . . . . 3 . . . . . Monitor 1 | . . . . . 1 . . . . . Reject 1 | . . . . . 1 . . . . . Mask 1 | . . . . . 1 . . . . . Scanalyzers . | . . . . . . . . . . . Garrison Access . | . . . . . . . . . . . Data Cores Recovered . | . . . . . . . . . . . Used . | . . . . . . . . . . . Hacking Detections 11 | . 2 . . . 2 2 . 2 2 1 Full Trace Events 2 | . 1 . . . 1 . . . . . Feedback Events . | . . . . . . . . . . . Feedback Blocked . | . . . . . . . . . . . Robot Schematics Acquired . | . . . . . . . . . . . Robots Built . | . . . . . . . . . . . Authchips . | . . . . . . . . . . . Time . | . . . . . . . . . . . Total Robot Build Rating . | . . . . . . . . . . . Part Schematics Acquired 4 | . . . . . . . . 4 . . Parts Built . | . . . . . . . . . . . Authchips . | . . . . . . . . . . . Time . | . . . . . . . . . . . Total Part Build Rating . | . . . . . . . . . . . Parts Repaired . | . . . . . . . . . . . Time . | . . . . . . . . . . . Parts Recycled . | . . . . . . . . . . . Recycled Matter . | . . . . . . . . . . . Retrieved Matter . | . . . . . . . . . . . Retrieved Components 2 | . . . . . 2 . . . . . Parts Scanalyzed 4 | . . . . . . . . 4 . . Part Schematics Acquired 4 | . . . . . . . . 4 . . Parts Damaged 1 | . . . . . . . . 1 . . Bothacking | -11 -10 -10 -10 -9 -8 -7 -7 -6 -5 -5 ------------ Run | Jun Mat Min Exi Min Mat Fac DSF Fac Fac Ext Used RIF Installer . | . . . . . . . . . . . Robots Hacked . | . . . . . . . . . . . Non-combat . | . . . . . . . . . . . Combat . | . . . . . . . . . . . Robot Hacks Applied . | . . . . . . . . . . . Relay Couplers Released . | . . . . . . . . . . . Fabnet Peak Effective % . | . . . . . . . . . . . Robots Rewired 6 | . . . . . . . . . . 6 Allies Hacked . | . . . . . . . . . . . Hacks Repelled . | . . . . . . . . . . . Allies | -11 -10 -10 -10 -9 -8 -7 -7 -6 -5 -5 -------- Run | Jun Mat Min Exi Min Mat Fac DSF Fac Fac Ext Total Allies 14 | . . . . 1 1 . . . . 12 Largest Group 11 | . . . . 1 1 1 1 . . 11 Highest-Rated Group 331 | . . . . 31 26 26 26 . . 331 Highest-Rated Ally 39 | . . . . 31 26 26 26 . . 39 Total Orders 14 | . . . . . . . 13 1 . . EXPLORE 11 | . . . . . . . 10 1 . . RETURN 3 | . . . . . . . 3 . . . Ally Attacks 52 | . . . . . . . 8 7 . 37 Total Damage 700 | . . . . . . . . . . 700 Kills 5 | . . . . . . . . . . 5 Allies Corrupted . | . . . . . . . . . . . Allies Melted 1 | . . 1 . . . . . . . . Intel | -11 -10 -10 -10 -9 -8 -7 -7 -6 -5 -5 ------- Run | Jun Mat Min Exi Min Mat Fac DSF Fac Fac Ext Robot Analysis Total . | . . . . . . . . . . . Derelict Logs Recovered 3 | . . 2 . 1 . . . . . . Drone Launches 33 | . . . . . . . 26 7 . . Drone Recoveries 17 | . . . . . . . 17 . . . Exploration | -11 -10 -10 -10 -9 -8 -7 -7 -6 -5 -5 ------------- Run | Jun Mat Min Exi Min Mat Fac DSF Fac Fac Ext Turns Passed 5141 | 63 193 747 517 212 276 52 338 441 1297 1005 Spaces Moved 3936 | 58 182 670 355 336 350 44 228 270 786 657 Core 286 | 1 . . . . . . 1 . . 284 Treads 552 | . . 255 297 . . . . . . . Legs 1 | . . . . . . . . . . 1 Wheels 1708 | 57 67 . . . . . 156 270 786 372 Hover 1323 | . 115 415 58 336 350 44 5 . . . Flight 66 | . . . . . . . 66 . . . Fastest Speed 31 | 50 56 56 56 56 52 116 31 115 115 50 Average Speed 102 | 79 65 95 143 56 59 116 105 122 123 113 Slowest Speed 400 | 80 120 160 160 56 116 116 400 130 160 160 Overloaded Moves . | . . . . . . . . . . . Propulsion Burnouts . | . . . . . . . . . . . Robots Hopped . | . . . . . . . . . . . Cave-ins Triggered . | . . . . . . . . . . . Exploration Rate (%) 42 | 3 44 94 71 58 24 1 97 13 16 47 Regions Visited 10 Branch Regions 4 Pre-discovered Areas 3 | . . 2 1 . . . . . . . Known Exits Taken 5 | . 1 1 1 . 1 1 . . . . Unknown Exits Taken 4 | 1 . . . 1 . . . 1 1 . Scrap Searched 3 | . . 1 . 2 . . . . . . Spaces Dug 16 | . . 3 . . 2 . 3 2 6 . Terrain Destroyed 159 | . . 5 . 1 19 . 3 58 7 66 Melee 11 | . . . . . . . 3 2 6 . Projectile 9 | . . 5 . 1 3 . . . . . AOE 139 | . . . . . 16 . . 56 1 66 Terrain Rammed . | . . . . . . . . . . . Walls Destroyed . | . . . . . . . . . . . Machines Disabled . | . . . . . . . . . . . Actions | -11 -10 -10 -10 -9 -8 -7 -7 -6 -5 -5 --------- Run | Jun Mat Min Exi Min Mat Fac DSF Fac Fac Ext Total 4700 | 71 229 712 365 350 394 45 316 363 974 881 Wait 239 | . 9 . . 1 3 . 27 74 86 39 Move 3926 | 57 181 669 354 335 349 43 227 269 785 657 Hop . | . . . . . . . . . . . Pick Up 65 | 6 8 3 3 3 4 1 17 3 15 2 Fast Attach 55 | 7 4 . 1 1 8 . 14 2 10 8 Attach 36 | . . 2 2 2 3 1 5 4 10 7 Detach 6 | . 2 . . . 3 . . 1 . . Swap 11 | . . 4 . . 2 . 1 . 3 1 Drop 55 | 1 9 4 5 2 6 . 20 2 . 6 Fire 87 | . 16 29 . 6 14 . 2 5 1 14 Melee 81 | . . . . . . . 3 3 64 11 Ram 4 | . . . . . 2 . . . . 2 Kick . | . . . . . . . . . . . Crush . | . . . . . . . . . . . Escape Stasis 61 | . . . . . . . . . . 61 Rewire 74 | . . 1 . . . . . . . 73 Trap . | . . . . . . . . . . . Miscellaneous . | . . . . . . . . . . . Route ------- -11/Junkyard -10/Materials (discovered 2 exits: *Mat / *Min) -10/Mines (discovered 3 exits: *Mat x2 / *Exi) -10/Exiles (discovered 2 exits: *Min x2) -9/Mines -8/Materials (discovered 2 exits: *Fac x2) -7/Factory (discovered 2 exits: Sto / DSF) -7/DSF -6/Factory -5/Factory -5/Extension History --------- Turn | Location | Event 18 | -11/Junkyard | Discovered new exit (range 16) 64 | -11/Junkyard | Entered Materials 168 | -10/Materials | Discovered new exit (range 16) 216 | -10/Materials | Identified exit to Materials 252 | -10/Materials | Discovered new exit (range 9) 256 | -10/Materials | Identified exit to Mines 257 | -10/Materials | Entered Mines 270 | -10/Mines | Met a Derelict bent on vengeance 303 | -10/Mines | Build established: Mutant 322 | -10/Mines | Learned location of Storage (-7) 367 | -10/Mines | Discovered exit to Materials (range 7) 383 | -10/Mines | Discovered exit to Materials (range 15) 470 | -10/Mines | Found a hidden stash of uninstalled traps 520 | -10/Mines | Assembled infested the area 616 | -10/Mines | Found the Drone Emporium 623 | -10/Mines | Found Prototype Device 998 | -10/Mines | Discovered new exit (range 5) 1003 | -10/Mines | Identified exit to Exiles 1004 | -10/Mines | Entered Exiles 1041 | -10/Exiles | Discovered new exit (range 14) 1059 | -10/Exiles | Identified exit to Mines 1089 | -10/Exiles | Met 8R-AWN 1115 | -10/Exiles | Met EX-HEX 1164 | -10/Exiles | Met EX-BIN 1190 | -10/Exiles | Aligned with FarCom system 1192 | -10/Exiles | Given EX-Vault access code 1228 | -10/Exiles | Opened EX-Vault 1235 | -10/Exiles | Found Prototype Device 1235 | -10/Exiles | Identified Skeleton Box 1267 | -10/Exiles | Warned to stay clear of 0b10 Research branches 1312 | -10/Exiles | Met EX-DEC 1331 | -10/Exiles | Learned location of Zion (-7) 1515 | -10/Exiles | Discovered exit to Mines (range 14) 1521 | -10/Exiles | Left Exiles lab with Skeleton Box 1521 | -10/Exiles | Entered Mines 1549 | -9/Mines | Found a damaged Exp. Sensor Array with a note attached 1551 | -9/Mines | Found Prototype Device 1614 | -9/Mines | A weapon hastily lodged in a ceiling crevice suddenly fell to the ground 1652 | -9/Mines | Received a Mining Laser from a helpful Derelict 1730 | -9/Mines | Discovered new exit (range 3) 1733 | -9/Mines | Entered Materials 1733 | -8/Materials | Evolved 4 slots: Propulsion x2, Utility x2 1733 | -8/Materials | Identified Bomb Drone Bay 1734 | -8/Materials | Identified exit to Factory 1735 | -8/Materials | Identified Exp. Sensor Array 1957 | -8/Materials | Discovered exit to Factory (range 11) 1988 | -8/Materials | Lost 3 parts (1p1u1w) 2009 | -8/Materials | Entered Factory 2009 | -7/Factory | Accompanied by 1 ally 2009 | -7/Factory | Evolved 2 slots: Power x1, Weapon x1 2010 | -7/Factory | Identified exit to Storage 2060 | -7/Factory | Identified exit to DSF 2061 | -7/Factory | Entered DSF 2061 | -7/DSF | Accompanied by 1 ally 2089 | -7/DSF | Additional patrols routed to DSF 2119 | -7/DSF | Discovered new exit (range 27) 2399 | -7/DSF | Entered Factory 2399 | -6/Factory | Evolved 2 slots: Power x1, Utility x1 2446 | -6/Factory | Discovered new exit (range 51) 2840 | -6/Factory | Entered another Factory area 2840 | -5/Factory | Evolved 2 slots: Propulsion x2 3342 | -5/Factory | Lost 13 parts (3p3n2u5w) 3439 | -5/Factory | System corruption reached 10% 3936 | -5/Factory | Cargo convoy interrupted 4086 | -5/Factory | Lost 5 parts (1p2n2u) 4126 | -5/Factory | Discovered new exit (range 9) 4137 | -5/Factory | Entered Extension 4169 | -5/Extension | Disrupted transfer network 4414 | -5/Extension | Rescued a captive Derelict 4415 | -5/Extension | Rescued a captive Derelict 4484 | -5/Extension | Core integrity fell below 50% 4685 | -5/Extension | Rescued a captive Derelict 4686 | -5/Extension | Rescued a captive Derelict 4839 | -5/Extension | Rescued a captive Derelict 4863 | -5/Extension | Rescued a captive Derelict 4904 | -5/Extension | Spotted B-75 Beast 4940 | -5/Extension | Spotted B-75 Beast 4952 | -5/Extension | Released all parts (5) 4983 | -5/Extension | Lost 22 parts (4p5n6u7w) 5006 | -5/Extension | Core integrity fell below 20% 5142 | -5/Extension | Destroyed by B-75 Beast with Heavy Plasma Cannon Last Messages --------------- 04956_ Lrn. Tractor Beam crushed and broken. 04959_ Acquired Imp. Shield Generator. 04960_ Acquired Imp. Hacking Suite. 04970_ System corrupted: Matter fused (-9). 04977_ Acquired 9 matter. 04988_ System corrupted: Matter fused (-9). 05011_ Slammed into R-10 Processor. 05015_ C,%TPLB:N2UQR 05093_ System corrupted: Component data lost. 05135_ Imp. Shield Generator destroyed. 05137_ Acquired 5 matter. 05139_ Acquired Carbon-fiber Leg. 05141_ Acquired Imp. Treads. Map ----- +----------------------------------------------------+ | #????????### ########????????????????????????? | | #??????###T# #????????????????????????? | | #??????# #????????????????????????? | | #??????###### #????????????????????????? | | #???????????# #????????????????????????? | | #+#########???# #????????????????????????? | | # ! | ! #???# ####### #????????????????????????? | | # #???# #?????# #????????????????????????? | | # #???# #?????# #????????????????????????? | | # #???# #?????# #????????????????????????? | | ###########???# #?????# #????????????????????????? | | ??????????????# #?????# #????????????????????????? | | ?????????????## #?????# #????????????????????????? | | ?????????????#T #?????# #????????????????????????? | | ?????????????## #?????# #????????????????????????? | | ??????????????# #?????#%#????????????????????????? | | ??????????????###?????# #????????????????????????? | | ??????????????????????#=#????????????????????????? | | ??????????????????????#%#????????????????????????? | | ??????????????????????#!#????????????????????????? | | ??????????????????????#%#??##??#?????????????????? | | ????????????????????###[### ## ### ??????????????? | | ????????????????????#"% R% R "" ""????????????? | | ????????????????????# !%R " " #???????????? | | ????????????????????#% g % #???????????? | | ???????????????????##%%%*@ R #???????????? | | #########"##########; ! #???????????? | | % % ????????? | | % % ?????????? | | ?????????? | | BB ?????????? | | BB % ??????????? | | ##################### BB ##??????????? | | ????????????????????# BB #???????????? | | ????????????????????# % #???????????? | | ????????????????????# #???????????? | | ????????????????????# ????????????? | | ????????????????????######T#"""####??????????????? | | ???????????????????????#??##?????????????????????? | | ?????????????????????????????????????????????????? | | | | | | | | | | | | | | | | | | | | | +----------------------------------------------------+ Best States ------------- Heat Dissipation 67 Energy Generation 48 Energy Capacity 585 Matter Stores 300 Matter Capacity 300 Sight Range 20 Terrain Scan Range 16 Terrain Scan Density 10 Jamming Range 12 Power Amplification 20 Additional Mass Support 6 EM Shielding 2 Armor Coverage 225 Core Shielding 30 Evasion (%) 54 Recoil Reduction 2 Item Schematics ----------------- Arm. Huge Wheel | -6/Factory | Scanalyzed Imp. Hardlight Generator | -6/Factory | Scanalyzed Adv. Signal Interpreter | -6/Factory | Scanalyzed Imp. System Restoration Module | -6/Factory | Scanalyzed Robot Schematics ------------------ None Fabricated ------------ Nothing Alien Tech Used ----------------- None Achievements -------------- Release The Drones! Challenges ------------ None Game ------ Seed SpliceMyomerDerivative Manual? 0 Play Time 00:58:14 Cumulative 236.6 hours Start 2023.12.15 @ 19:41:48 End 2023.12.15 @ 20:44:39 Sessions 1 Manual Loads 0 Difficulty Rogue Special Mode None Game No. 52 Rogue 42 Adventurer 4 Explorer 6 Win Type - Total 17 Types 7/0/2/3/0/4/1/0/0 Lore% 60 Gallery% 70 Achievement% 66 Wizard Run 0 Options --------- ASCII 0 Keyboard 0 Movement Mouse Keybinds 0 Fullscreen 1 Font 24/Smallcaps Map View 76x50 Tactical HUD 1 Map Filters NONE Filters NONE Steam 1 RUN: 2d478fd2-b9bc-4c87-84ba-a20ee31d8af9